bitfinex/quotes_ETHUSD_20251220
["timestamp","ask_amount","ask_price","bid_price","bid_amount"]
[1766250408224,0.3789,2982.6,2982.0,0.441]
[1766250409002,0.3789,2982.6,2982.4,0.001]
[1766250409202,0.3789,2982.5,2982.4,0.001]
[1766250415434,0.3789,2982.5,2982.0,0.001]
[1766250415929,0.3789,2982.5,2982.4,0.001]
[1766250415930,1.38637377,2982.5,2982.4,0.001]
[1766250416135,0.3789,2982.4,2981.8,0.001]
[1766250416327,0.3789,2982.2,2981.6,0.001]
[1766250416714,1.00765989,2982.1,2981.6,0.001]
[1766250416904,0.3789,2982.0,2981.6,0.001]
[1766250418231,0.3789,2981.8,2981.3,1.4499]
[1766250418631,1.00765989,2981.7,2981.3,1.4499]
[1766250418933,0.3789,2981.8,2981.3,1.4499]
[1766250421236,0.3789,2981.7,2980.9,0.001]
[1766250421437,0.3789,2981.5,2980.8,1.4499]
[1766250421645,3.36330522,2982.2,2980.9,3.35461764]
[1766250421808,3.36330522,2982.2,2980.8,0.001]
[1766250421809,1.00782915,2981.9,2981.1,1.4489]
[1766250422136,0.3789,2982.0,2981.1,1.4489]
[1766250422336,0.44,2981.9,2981.1,1.4489]
[1766250422536,0.44,2981.9,2981.0,3.35457745]
[1766250422537,0.3789,2981.8,2981.3,1.4489]
[1766250423010,0.3789,2981.8,2981.2,0.48034775]
[1766250423210,0.3789,2981.8,2981.0,1.4489]
[1766250423625,0.3789,2981.8,2981.3,0.001]
[1766250425637,0.3789,2981.8,2981.3,1.5943]
[1766250429434,0.44,2981.7,2981.3,1.5943]
[1766250429635,0.8345,2981.7,2981.3,1.5943]
[1766250431242,0.44,2981.6,2981.3,1.5943]
[1766250435614,0.44,2981.6,2981.3,0.001]
[1766250435814,0.3945,2981.5,2981.3,0.001]
[1766250438553,0.44,2981.6,2981.3,0.001]
[1766250438940,0.3945,2981.7,2981.3,1.5943]
[1766250439142,0.44,2981.6,2981.3,1.5943]
[1766250443652,0.001,2981.8,2981.4,0.3661]
[1766250443858,0.441,2981.8,2981.5,1.6193]
[1766250444556,0.8155,2981.8,2981.5,1.6193]
[1766250446426,0.8155,2981.8,2981.3,1.6203]
[1766250448161,0.3755,2981.8,2981.3,1.6203]
[1766250448369,0.001,2981.8,2981.4,1.627]
[1766250455732,0.3652,2981.8,2981.4,1.6193]
[1766250465259,0.001,2981.8,2981.4,1.6385]
[1766250472488,0.001,2981.8,2981.4,1.6193]
[1766250472659,0.3652,2981.8,2981.4,1.6193]
[1766250473089,0.3652,2981.8,2981.4,1.6213]
[1766250477362,0.3652,2981.8,2981.3,0.001]
[1766250477562,0.3652,2981.8,2980.8,1.5984]
[1766250477563,0.3642,2981.7,2980.8,1.5984]
[1766250477769,0.3642,2981.5,2980.8,1.5984]
[1766250477963,0.3642,2981.4,2980.8,1.5984]
[1766250479102,0.3642,2981.4,2980.6,0.001]
[1766250479301,0.3642,2981.4,2980.6,1.5984]
[1766250479801,0.3642,2981.4,2980.6,1.627]
[1766250480013,0.3642,2981.3,2980.6,1.627]
[1766250480428,0.3642,2981.3,2980.6,0.001]
[1766250481418,0.3642,2981.3,2980.6,1.5984]
[1766250481712,0.8042,2981.2,2980.6,1.5984]
[1766250481891,0.3642,2981.1,2980.6,1.5984]
[1766250483504,0.3642,2981.1,2980.6,0.001]
[1766250483888,0.3642,2980.9,2980.6,0.001]
[1766250484405,0.72900232,2981.1,2980.6,1.5984]
[1766250484906,0.3735,2981.0,2980.6,1.5984]
[1766250487439,0.3735,2981.0,2980.3,3.3553669]
[1766250487613,0.3735,2981.0,2980.5,0.002]
[1766250488502,0.3735,2981.0,2980.5,1.6302]
[1766250493739,0.72900232,2981.1,2980.8,1.6282]
[1766250493920,0.8135,2981.4,2980.8,1.665]
[1766250494122,1.10250232,2981.3,2980.8,1.665]
[1766250494325,1.10250232,2981.3,2980.8,1.6282]
[1766250494529,0.72900232,2981.3,2980.8,1.6282]
[1766250494730,0.72900232,2981.3,2980.8,1.665]
[1766250495048,0.001,2981.0,2980.8,1.665]
[1766250495747,0.001,2981.0,2980.9,1.6282]
[1766250507949,0.001,2981.0,2980.6,5.42319105]
[1766250509857,0.001,2981.0,2980.7,1.6282]
[1766250514356,0.001,2981.0,2980.7,3.35491408]
[1766250514559,0.001,2981.0,2980.8,1.6332]
[1766250515435,0.001,2981.0,2980.6,0.44]
[1766250515638,0.4032,2981.0,2980.6,0.44]
[1766250518260,0.4032,2981.0,2980.5,1.5978]
[1766250522435,0.4032,2981.0,2980.5,0.002]
[1766250527180,0.4032,2981.0,2980.5,1.5978]
[1766250532094,0.4032,2981.0,2980.5,4.95288978]
[1766250532269,0.4032,2981.0,2980.6,1.5958]
[1766250537590,0.001,2981.0,2980.6,1.5958]
[1766250539089,0.4032,2981.0,2980.6,1.5958]
[1766250542292,0.001,2981.0,2980.7,1.5958]
[1766250542479,0.4032,2981.0,2980.5,5.00519909]
[1766250542792,0.4032,2981.0,2980.6,1.5958]
[1766250558506,0.4032,2981.0,2980.5,3.35711455]
[1766250558912,0.4032,2981.0,2980.5,4.89431455]
[1766250559409,0.4032,2981.0,2980.5,1.5392]
[1766250561214,0.4032,2981.0,2980.5,3.35712945]
[1766250561415,0.4032,2981.0,2980.6,1.5372]
[1766250568733,0.4032,2981.0,2980.5,0.002]
[1766250569225,0.4032,2981.0,2980.5,1.6096]
[1766250579545,0.4032,2981.0,2980.5,0.002]
[1766250590246,0.4032,2981.0,2980.4,1.5483]
[1766250590247,0.4032,2981.0,2980.2,5.34575061]
[1766250590448,0.3942,2980.9,2980.2,5.34575061]
[1766250593449,0.3942,2980.9,2980.5,0.002]
[1766250597221,0.3942,2980.7,2980.2,0.002]
[1766250599651,0.3942,2980.7,2980.0,0.001]
[1766250599652,0.3942,2980.6,2980.0,0.001]
[1766250599851,0.3942,2980.6,2979.8,1.5483]
[1766250600050,0.3942,2980.4,2979.8,1.5483]
[1766250600462,0.3942,2980.4,2979.8,3.35591973]
[1766250600768,0.8342,2980.5,2980.1,1.5483]
[1766250602354,0.3942,2980.3,2979.7,0.3781]
[1766250602552,0.3942,2980.3,2979.6,3.95610927]
[1766250602553,0.3942,2980.3,2979.6,0.6]
[1766250603059,0.3942,2980.2,2979.6,0.6]
[1766250603356,10.42155697,2980.3,2979.6,0.6]
[1766250603357,0.3942,2980.0,2979.6,0.6]
[1766250612969,0.3942,2980.0,2979.6,2.2029]
[1766250613169,0.3942,2980.0,2979.6,0.6]
[1766250613340,0.3942,2980.0,2979.7,1.6029]
[1766250614489,1.00835082,2980.1,2979.7,1.6029]
[1766250614775,1.39895082,2980.1,2979.7,1.6029]
[1766250615369,0.001,2980.0,2979.7,1.6029]
[1766250616536,0.001,2980.0,2979.7,2.0104]
[1766250616754,0.001,2980.0,2979.8,1.6029]
[1766250617579,10.42155697,2980.6,2979.8,1.6029]
[1766250617580,0.44,2980.8,2979.9,1.6029]
[1766250617875,0.3906,2980.7,2979.9,1.0082661]
[1766250618074,0.3906,2980.7,2980.0,1.6029]
[1766250618387,0.3906,2980.7,2980.1,1.0082661]
[1766250618553,0.3906,2980.6,2980.1,2.6111661]
[1766250618745,0.3906,2980.6,2980.1,1.0082661]
[1766250619078,0.3906,2980.6,2979.9,1.6029]
[1766250619265,0.3906,2980.6,2979.9,2.6111661]
[1766250619467,0.3906,2980.6,2979.9,1.6029]
[1766250619846,0.3906,2980.6,2980.0,1.0082661]
[1766250620046,0.3906,2980.5,2980.0,1.0082661]
[1766250620245,0.3906,2980.5,2979.7,1.6029]
[1766250620448,0.3906,2980.5,2979.9,1.0082661]
[1766250620646,0.3906,2980.5,2979.6,0.6]
[1766250620647,10.42155697,2980.0,2979.6,0.6]
[1766250620849,0.1912,2979.9,2979.6,0.6]
[1766250621151,0.1912,2979.9,2979.5,0.602]
[1766250621351,2.06970787,2979.9,2979.4,0.002]
[1766250622577,2.07978394,2979.9,2979.0,0.602]
[1766250622783,0.44,2979.8,2979.1,2.0104]
[1766250624377,0.44,2979.8,2979.0,0.602]
[1766250624774,10.86155697,2979.8,2979.0,0.602]
[1766250625085,10.87281155,2979.8,2979.0,0.602]
[1766250625394,12.39762828,2979.8,2979.0,2.6124]
[1766250625898,1.96481673,2979.8,2979.1,1.8976]
[1766250626591,0.44,2979.8,2979.1,1.4986]
[1766250626758,0.44,2979.8,2979.1,1.8976]
[1766250627884,1.00854404,2979.7,2979.1,1.8976]
[1766250628671,1.00854404,2979.7,2979.0,0.602]
[1766250629780,1.00854404,2979.7,2979.0,2.1006]
[1766250630095,1.00854404,2979.7,2979.0,2.4996]
[1766250630292,1.00854404,2979.7,2979.1,1.8976]
[1766250630790,1.00854404,2979.7,2979.1,0.399]
[1766250631091,1.00854404,2979.7,2979.2,1.4986]
[1766250631895,1.00854404,2979.7,2979.0,2.1006]
[1766250632490,1.00854404,2979.7,2979.0,0.602]
[1766250632820,1.00854404,2979.7,2978.4,2.90822542]
[1766250632821,10.43281155,2979.2,2978.4,2.90822542]
[1766250633474,10.43281155,2979.2,2978.4,1.8996]
[1766250633803,0.441,2979.3,2978.4,1.8996]
[1766250633991,0.441,2979.3,2978.4,5.25710679]
[1766250634191,1.00871021,2979.1,2978.4,5.25710679]
[1766250635160,1.00871021,2979.1,2978.4,5.25709276]
[1766250635679,1.00871021,2979.1,2978.4,1.8996]
[1766250636461,1.00871021,2979.1,2978.4,0.002]
[1766250636666,1.00871021,2979.1,2978.4,3.35948296]
[1766250636887,1.00871021,2979.1,2978.5,1.8301]
[1766250638294,1.00871021,2979.1,2978.5,0.002]
[1766250638472,2.5328708,2979.1,2978.5,0.002]
[1766250639767,1.00871021,2979.1,2978.5,0.002]
[1766250642298,4.36547457,2979.1,2978.5,0.002]
[1766250642704,4.36547457,2979.1,2978.2,0.002]
[1766250642705,0.01007607,2978.9,2978.2,0.002]
[1766250643012,0.441,2978.8,2977.8,2.83888144]
[1766250643237,1.48554688,2978.8,2977.8,0.002]
[1766250643375,1.48554688,2978.8,2977.3,0.002]
[1766250643376,10.44546881,2978.4,2977.3,0.002]
[1766250643572,10.44546881,2978.4,2977.4,1.8281]
[1766250643573,0.441,2978.3,2977.4,1.8281]
[1766250644217,0.441,2978.2,2977.4,1.8281]
[1766250644920,0.882,2978.2,2977.4,3.35860217]
[1766250645074,0.441,2978.2,2977.8,1.8281]
[1766250645275,0.01007607,2979.1,2978.0,0.4004]
[1766250645499,1.00883571,2978.7,2978.1,10.43539274]
[1766250645709,0.441,2979.1,2978.1,10.43539274]
[1766250646022,0.441,2979.1,2978.5,1.8281]
[1766250646192,0.441,2979.1,2978.5,2.01091]
[1766250646710,0.441,2979.1,2978.6,1.8281]
[1766250647811,3.35641054,2979.4,2978.6,1.8281]
[1766250648010,0.441,2979.3,2978.6,1.8281]
[1766250648197,0.001,2979.1,2978.6,1.8281]
[1766250652380,0.001,2979.1,2978.6,2.83684413]
[1766250652578,0.001,2979.1,2978.6,3.12052854]
[1766250652889,0.001,2979.1,2978.7,1.8281]
[1766250658380,0.001,2979.1,2978.8,0.4004]
[1766250658580,0.001,2979.1,2978.9,1.8281]
[1766250658996,0.001,2979.1,2978.7,1.4277]
[1766250659197,0.001,2979.1,2978.9,1.8281]
[1766250659911,3.35685965,2979.9,2978.8,0.50685914]
[1766250660215,1.45970149,2979.8,2979.0,1.8281]
[1766250661333,3.35685965,2979.9,2979.4,1.4277]
[1766250661334,0.001,2979.9,2979.4,1.4277]
[1766250661616,0.001,2979.9,2979.4,1.8281]
[1766250661821,0.001,2979.9,2978.9,7.72243161]
[1766250661822,0.001,2980.3,2979.6,1.4277]
[1766250662018,0.001,2980.3,2979.5,3.57261366]
[1766250662019,0.001,2980.3,2979.8,1.8281]
[1766250663019,0.001,2980.3,2979.3,1.4277]
[1766250663230,0.01107607,2980.3,2979.4,1.8281]
[1766250663586,0.01107607,2980.3,2979.4,0.4004]
[1766250663896,0.01107607,2980.3,2979.5,1.8281]
[1766250664096,0.39282475,2980.3,2979.5,1.8281]
[1766250664294,0.38274868,2980.3,2979.3,3.35649281]
[1766250664498,0.38274868,2980.3,2979.6,1.8252]
[1766250665124,0.38274868,2980.3,2979.4,1.5502]
[1766250665334,0.38274868,2980.3,2979.6,1.9477]
[1766250665534,0.41790134,2980.2,2979.6,1.9477]
[1766250666088,0.001,2980.3,2979.6,1.9477]
[1766250667817,0.001,2980.3,2979.3,3.35645464]
[1766250667985,0.001,2980.3,2979.4,1.9477]
[1766250668192,0.001,2980.3,2979.3,3.35645464]
[1766250668499,0.001,2980.3,2979.6,1.5502]
[1766250668701,0.38173371,2980.3,2979.4,1.9477]
[1766250668913,0.001,2980.3,2979.3,3.35645464]
[1766250669387,0.001,2980.3,2979.5,0.3975]
[1766250669592,0.001,2980.3,2979.8,1.5502]
[1766250670129,0.001,2980.3,2979.8,1.9477]
[1766250670293,0.001,2980.3,2979.5,0.3975]
[1766250670622,0.001,2980.3,2979.8,1.5502]
[1766250671621,0.001,2980.3,2979.8,1.9477]
[1766250680428,0.001,2980.3,2979.5,3.35825758]
[1766250680628,0.001,2980.3,2979.8,0.3975]
[1766250680818,0.001,2980.3,2979.9,1.9477]
[1766250684333,0.001,2980.3,2979.6,0.33582576]
[1766250684537,0.001,2980.3,2979.6,2.28352576]
[1766250684951,0.001,2980.3,2979.7,1.9477]
[1766250685653,0.39171102,2980.3,2979.5,0.002]
[1766250686151,0.39171102,2980.3,2979.5,1.9497]
[1766250686370,0.01107607,2980.3,2979.5,1.9497]
[1766250686553,0.01107607,2980.3,2979.6,1.9477]
[1766250687447,0.001,2980.3,2979.5,0.002]
[1766250687651,0.001,2980.3,2979.9,0.3975]
[1766250687855,0.001,2980.3,2979.9,1.9477]
[1766250689660,0.001,2980.3,2980.0,0.3975]
[1766250691960,0.001,2980.3,2979.9,1.5502]
[1766250692361,0.001,2980.3,2979.8,0.4374]
[1766250692530,0.001,2980.3,2979.7,1.4189]
[1766250693131,0.001,2980.3,2979.9,0.002]
[1766250703255,0.38162576,2980.3,2979.9,0.002]
[1766250704785,0.38162576,2980.3,2979.9,1.8491]
[1766250704954,0.001,2980.3,2979.9,1.8491]
[1766250710078,0.001,2980.3,2979.9,0.002]
[1766250710287,0.001,2980.3,2980.0,1.8471]
[1766250721410,0.001,2980.3,2980.0,1.8491]
[1766250722404,0.001,2980.3,2980.1,1.8471]
[1766250722574,0.001,2980.3,2980.1,1.4182]
[1766250722777,0.44,2980.7,2980.2,1.8471]
[1766250723603,3.36578391,2980.9,2980.2,1.8471]
[1766250724210,0.44,2980.8,2980.2,1.8471]
[1766250724911,0.44,2980.8,2980.0,0.002]
[1766250725094,0.001,2980.9,2980.3,10.42617602]
[1766250725289,0.001,2980.9,2980.1,10.42617602]
[1766250725498,0.001,2980.9,2980.1,13.78175958]
[1766250725815,0.001,2980.9,2980.4,1.5401]
[1766250726113,0.001,2980.9,2980.4,1.9728]
[1766250727411,0.001,2980.9,2980.4,2.17008]
[1766250730915,0.001,2980.9,2980.2,1.9728]
[1766250731119,0.01107607,2980.9,2980.2,1.9728]
[1766250735937,0.001,2980.9,2980.2,1.9728]
[1766250743240,0.001,2980.9,2980.1,0.002]
[1766250743538,0.001,2980.9,2980.3,0.4327]
[1766250743740,0.001,2980.9,2980.3,1.9728]
[1766250752149,0.001,2980.9,2980.1,0.002]
[1766250752348,0.001,2980.9,2980.3,0.4322]
[1766250752757,10.43248808,2980.7,2980.1,0.002]
[1766250753261,0.44,2980.6,2980.1,0.002]
[1766250762068,0.44,2980.6,2980.1,1.9363]
[1766250762878,0.001,2980.9,2980.1,0.002]
[1766250763182,0.441,2980.9,2980.1,0.442]
[1766250763581,0.441,2980.9,2980.3,0.445]
[1766250763781,0.441,2980.9,2980.4,1.9343]
[1766250764354,0.001,2980.9,2980.4,0.19343]
[1766250764572,0.001,2980.9,2980.5,1.9343]
[1766250764774,0.001,2980.9,2980.5,1.4893]
[1766250764969,0.001,2980.9,2980.5,1.9343]
[1766250782374,0.001,2980.9,2980.4,1.4893]
[1766250782593,0.001,2980.9,2980.6,1.4893]
[1766250782785,0.001,2980.9,2980.6,1.9343]
[1766250785104,0.001,2980.9,2980.6,1.9343]
[1766250787209,0.001,2980.9,2980.4,1.8954]
[1766250787702,0.001,2980.9,2980.4,1.4586]
[1766250787906,0.001,2980.9,2980.5,1.8954]
[1766250788778,0.001,2980.9,2980.4,1.8954]
[1766250789003,0.001,2981.1,2980.8,1.4586]
[1766250789304,0.001,2981.5,2981.0,0.4368]
[1766250789502,0.001,2981.5,2981.2,1.8954]
[1766250790282,0.001,2981.5,2980.9,1.4586]
[1766250790476,0.001,2981.5,2981.0,0.4368]
[1766250791303,0.01107607,2981.5,2980.8,0.44]
[1766250791682,0.01107607,2981.5,2980.8,0.67354]
[1766250791883,0.001,2980.9,2980.8,2.56894]
[1766250792494,0.001,2981.5,2980.8,2.13214]
[1766250792781,0.001,2981.5,2980.9,1.8954]
[1766250794411,0.001,2981.5,2981.0,0.4368]
[1766250794617,0.441,2981.5,2981.0,0.4368]
[1766250794920,0.441,2981.5,2981.1,1.8954]
[1766250795901,0.441,2981.5,2980.5,0.62974]
[1766250795902,0.441,2981.5,2980.7,0.4368]
[1766250796084,0.441,2981.5,2981.0,0.441]
[1766250796285,0.441,2981.5,2980.8,1.8954]
[1766250796485,0.441,2981.5,2980.8,3.09287412]
[1766250804418,3.7950173,2981.5,2980.8,3.09287412]
[1766250804716,3.7950173,2981.5,2980.8,2.08494]
[1766250805018,3.7950173,2981.5,2980.7,1.0079646]
[1766250805318,3.7950173,2981.5,2980.7,2.9033646]
[1766250808731,0.001,2981.5,2981.1,1.4083]
[1766250809028,0.441,2981.8,2981.3,1.8394]
[1766250809929,0.441,2981.8,2981.1,1.00784946]
[1766250810133,3.7946816,2981.8,2981.1,1.00784946]
[1766250811628,3.7946816,2981.8,2981.1,2.84724946]
[1766250824936,3.76801921,2981.8,2981.1,2.84724946]
[1766250826974,3.76901921,2981.8,2981.1,2.84724946]
[1766250829678,3.63570725,2981.8,2981.1,2.84724946]
[1766250831672,10.41752187,2981.7,2981.1,2.84724946]
[1766250832475,10.41752187,2981.7,2981.1,1.8394]
[1766250835780,13.77133979,2981.7,2981.0,1.00986301]
[1766250836076,10.41752187,2981.5,2981.0,1.00986301]
[1766250836279,3.6357447,2981.8,2981.0,1.33212931]
[1766250836484,10.41752187,2981.7,2981.0,2.78166301]
[1766250839384,10.41752187,2981.7,2981.1,0.4408]
[1766250839556,10.41752187,2981.7,2981.1,1.7718]
[1766250843191,0.28202565,2981.8,2981.1,1.7718]
[1766250843395,0.28202565,2981.8,2981.0,1.00986301]
[1766250843688,0.28202565,2981.8,2981.2,1.7718]
[1766250846568,0.28202565,2981.8,2981.1,0.43645415]
[1766250846888,0.001,2981.8,2981.2,1.7531]
[1766250848594,0.001,2981.8,2981.0,0.002]
[1766250848595,13.77141103,2981.8,2981.0,0.442]
[1766250848798,13.77141103,2981.8,2981.0,0.76239799]
[1766250849298,10.41772093,2981.8,2981.0,2.51549799]
[1766250849999,10.41772093,2981.8,2981.1,1.7531]
[1766250851501,13.77140122,2981.8,2981.1,1.7531]
[1766250854198,10.41672093,2981.6,2981.0,0.442]
[1766250857203,10.41672093,2981.6,2981.0,0.66161]
[1766250858401,10.41672093,2981.4,2980.8,0.001]
[1766250860706,10.41672093,2981.4,2980.8,1.7541]
[1766250861913,3.35382634,2981.7,2980.9,1.7531]
[1766250862093,0.44,2981.6,2981.1,1.3311]
[1766250862279,1.86216233,2981.6,2981.1,1.3311]
[1766250862604,1.86216233,2981.6,2981.0,0.422]
[1766250864210,1.86216233,2981.6,2981.0,1.7531]
[1766250864413,0.44,2981.6,2980.9,1.3311]
[1766250864614,0.44,2981.6,2981.1,1.3311]
[1766250864813,0.44,2981.6,2981.1,1.7531]
[1766250865110,0.001,2981.8,2981.0,3.35456537]
[1766250865280,0.441,2981.8,2981.3,0.422]
[1766250865482,0.441,2981.8,2981.3,1.7531]
[1766250869118,0.001,2981.8,2981.3,1.7531]
[1766250869292,0.441,2981.8,2981.3,1.7531]
[1766250871221,10.85772093,2981.8,2981.3,1.7531]
[1766250871426,12.2788511,2981.8,2981.3,1.7531]
[1766250871589,15.63254599,2981.8,2981.1,1.3826]
[1766250871793,15.63254599,2981.8,2981.1,1.8227]
[1766250875525,12.2788511,2981.8,2981.1,1.8227]
[1766250878729,12.2788511,2981.8,2981.0,0.002]
[1766250879033,12.2788511,2981.8,2981.1,1.7953]
[1766250879431,1.86213017,2981.8,2981.1,1.7953]
[1766250881533,0.441,2981.8,2981.1,1.7953]
[1766250882802,0.441,2981.8,2981.0,0.38177859]
[1766250882945,0.441,2981.8,2981.1,1.7953]
[1766250883477,0.441,2981.8,2981.0,0.38177859]
[1766250883679,0.441,2981.8,2981.1,1.7953]
[1766250883877,0.441,2981.8,2981.0,0.38177859]
[1766250884375,0.441,2981.8,2981.2,0.4034]
[1766250884794,1.86324625,2981.8,2981.2,0.4034]
[1766250886482,5.21692605,2981.8,2981.2,0.4034]
[1766250889786,1.86324625,2981.8,2981.2,0.4034]
[1766250892894,1.86324625,2981.8,2981.2,1.7953]
[1766250900693,0.001,2981.8,2981.0,3.73635735]
[1766250900887,0.001,2981.8,2981.4,0.4034]
[1766250901088,0.001,2981.8,2981.5,1.7953]
[1766250903882,0.001,2981.8,2981.1,1.3919]
[1766250904081,0.001,2981.8,2981.0,3.73633615]
[1766250904082,0.001,2981.8,2981.3,1.3919]
[1766250904282,0.001,2981.8,2981.3,1.7953]
[1766250904499,0.001,2981.8,2981.4,1.7953]
[1766250908380,0.001,2981.8,2981.3,0.17953]
[1766250909902,0.001,2981.8,2981.3,1.88113]
[1766250913504,0.001,2981.8,2981.4,1.7016]
[1766250916905,0.001,2981.8,2981.1,1.00786639]
[1766250917111,0.001,2981.8,2981.1,0.3531245]
[1766250917483,0.001,2981.8,2981.0,3.09124498]
[1766250918311,0.44,2981.7,2981.0,3.09124498]
[1766250918486,0.44,2981.7,2981.0,2.08337859]
[1766250924217,1.44886639,2981.8,2981.0,0.38177859]
[1766250924514,1.44886639,2981.8,2981.3,1.7036]
[1766250925110,0.001,2981.7,2981.3,1.7036]
[1766250925416,0.001,2981.7,2981.1,1.7036]
[1766250927713,0.001,2981.7,2981.1,0.31534664]
[1766250928097,1.00886639,2981.8,2981.2,1.7036]
[1766250928297,1.00886639,2981.8,2981.2,1.3016]
[1766250928614,1.00886639,2981.8,2981.4,1.7036]
[1766250928805,0.001,2981.8,2981.4,1.7036]
[1766250929614,0.001,2981.8,2981.5,0.402]
[1766250929917,0.001,2981.8,2981.1,3.66980413]
[1766250929918,0.001,2981.8,2981.6,1.7036]
[1766250931114,0.001,2981.8,2981.4,1.3016]
[1766250931419,0.001,2981.8,2981.6,1.7036]
[1766250932088,0.001,2981.8,2981.2,1.00781899]
[1766250932308,0.001,2981.8,2981.4,0.402]
[1766250932510,0.001,2981.8,2981.4,1.7036]
[1766250932808,0.001,2981.8,2981.4,1.9747419]
[1766250933012,0.001,2981.8,2981.2,2.71141899]
[1766250934326,0.001,2981.8,2981.3,1.7036]
[1766250940837,0.001,2981.8,2981.3,1.7046]
[1766250942711,0.001,2981.8,2981.3,0.001]
[1766250954923,0.001,2981.8,2981.3,1.7792]
[1766250961335,0.001,2981.8,2981.5,1.7782]
[1766250963580,0.001,2981.8,2981.5,1.3805]
[1766250963780,0.001,2981.8,2981.6,0.3977]
[1766250967849,0.001,2981.8,2981.5,1.3805]
[1766250976655,0.001,2981.8,2981.3,1.00881899]
[1766250981988,10.41746143,2981.8,2981.3,1.00881899]
[1766250985090,10.41746143,2981.8,2981.3,2.77221899]
[1766250985290,0.001,2981.8,2981.3,3.08097555]
[1766250994364,0.001,2981.8,2981.3,2.77221899]
[1766251002004,0.001,2981.8,2981.3,1.00881899]
[1766251002304,0.001,2981.8,2981.4,1.6902]
[1766251002776,0.001,2981.8,2981.4,2.69801899]
[1766251002975,0.001,2981.8,2981.4,1.6902]
[1766251003176,0.001,2981.8,2981.4,2.69801899]
[1766251003376,0.001,2981.8,2981.5,1.6902]
[1766251019221,0.001,2981.8,2981.5,1.6912]
[1766251020317,0.001,2981.8,2981.5,0.001]
[1766251020518,1.00781899,2982.0,2981.7,1.6902]
[1766251021321,0.441,2982.1,2981.7,1.6902]
[1766251021706,0.45107607,2982.1,2981.7,1.6902]
[1766251026626,0.45107607,2982.1,2981.5,2.57879529]
[1766251026924,0.01107607,2982.1,2981.5,2.57879529]
[1766251027223,0.44,2982.0,2981.5,2.57879529]
[1766251028121,0.01107607,2982.1,2981.5,2.57879529]
[1766251028326,0.44,2982.0,2981.5,2.57879529]
[1766251037731,0.44,2982.0,2981.5,2.83677482]
[1766251038234,0.44,2982.0,2981.5,2.57879529]
[1766251039141,0.01007607,2981.9,2981.5,1.00879529]
[1766251039749,0.01007607,2981.9,2981.5,2.57879529]
[1766251039919,0.44,2982.0,2981.6,1.57]
[1766251040228,0.44,2982.0,2981.5,1.00879529]
[1766251040433,0.44,2982.0,2981.6,1.57]
[1766251042036,0.001,2982.1,2981.7,1.5867]
[1766251042206,1.00879529,2982.2,2982.0,0.3823]
[1766251042409,1.00879529,2982.2,2982.0,1.5867]
[1766251042718,0.001,2982.4,2982.2,1.5867]
[1766251042914,0.002,2982.5,2982.3,0.3823]
[1766251043519,0.002,2982.5,2982.4,2e-08]
[1766251055846,0.002,2982.5,2981.7,1.9904]
[1766251056047,10.42569915,2982.2,2981.6,0.001]
[1766251056231,0.01007607,2982.0,2981.6,0.001]
[1766251056941,1.0178172,2982.0,2981.6,0.001]
[1766251058249,1.0178172,2982.0,2981.3,1.00874113]
[1766251058250,3.36354788,2982.0,2981.3,1.00874113]
[1766251058538,1.00778852,2981.9,2981.3,0.001]
[1766251058722,0.01007607,2981.8,2981.3,0.001]
[1766251059356,1.01789506,2981.8,2981.3,0.001]
[1766251063453,11.4355895,2981.8,2981.3,0.001]
[1766251064150,10.42777051,2981.8,2981.3,0.001]
[1766251064319,1.00783931,2981.7,2981.3,0.001]
[1766251071154,10.41981415,2982.5,2981.6,1.1605]
[1766251071358,1.00778175,2982.1,2981.7,0.3899]
[1766251071546,10.85781415,2982.3,2981.7,0.3899]
[1766251071871,1.00778175,2982.2,2981.7,0.3899]
[1766251072256,1.00778175,2982.2,2981.6,1.1605]
[1766251072449,10.41781415,2982.1,2981.6,1.00778175]
[1766251073051,10.85781415,2982.1,2981.6,1.00778175]
[1766251073562,14.21116018,2982.1,2981.6,1.00778175]
[1766251074369,0.01007607,2982.0,2981.6,1.00778175]
[1766251080539,10.85781415,2982.1,2981.7,1.5504]
[1766251080540,0.44,2982.1,2981.7,1.5504]
[1766251082743,0.01007607,2982.2,2981.7,1.1605]
[1766251083063,0.44,2982.1,2981.8,1.5504]
[1766251083642,0.44,2982.1,2981.8,0.3899]
[1766251083843,0.44,2982.1,2981.6,1.00778175]
[1766251083844,0.44,2982.1,2981.6,2.55818175]
[1766251084038,0.44,2982.1,2981.6,2.81409993]
[1766251085068,0.01007607,2982.0,2981.6,2.81409993]
[1766251085484,10.42789022,2982.0,2981.6,1.00778175]
[1766251086774,0.01007607,2981.8,2981.6,1.00778175]
[1766251087150,0.01007607,2981.8,2981.6,0.56687723]
[1766251087350,0.01007607,2981.8,2981.5,0.001]
[1766251087652,0.01007607,2981.8,2981.5,1.00878852]
[1766251089353,0.01007607,2981.8,2981.5,0.001]
[1766251089753,10.42789022,2982.0,2981.5,0.001]
[1766251094009,0.01007607,2982.0,2981.5,0.001]
[1766251095178,0.01007607,2982.0,2981.5,0.3893]
[1766251095377,0.45007607,2982.0,2981.6,0.3883]
[1766251095582,0.45007607,2982.0,2981.6,1.5685]
[1766251095852,0.002,2982.1,2981.7,1.5685]